fUST/lending_fUST_20260517
["ID","MTS","AMOUNT","RATE_DAILY","PERIOD"]
[422518573,1779021041000,-1335.73825948,9.794e-05,2]
[422518566,1779021041000,-1091.49335662,9.794e-05,2]
[422518550,1779021041000,-733.2157974,9.794e-05,2]
[422518551,1779021041000,-733.2157974,9.794e-05,2]
[422518553,1779021041000,-733.2157974,9.794e-05,2]
[422518554,1779021041000,-733.2157974,9.794e-05,2]
[422518552,1779021041000,-733.2157974,9.794e-05,2]
[422518556,1779021041000,-733.2157974,9.794e-05,2]
[422518555,1779021041000,-733.2157974,9.794e-05,2]
[422518559,1779021041000,-733.2157974,9.794e-05,2]
[422518558,1779021041000,-733.2157974,9.794e-05,2]
[422518549,1779021041000,-733.2157974,9.794e-05,2]
[422518560,1779021041000,-733.2157974,9.794e-05,2]
[422518561,1779021041000,-733.2157974,9.794e-05,2]
[422518562,1779021041000,-733.2157974,9.794e-05,2]
[422518557,1779021041000,-733.2157974,9.794e-05,2]
[422518564,1779021041000,-1335.73825948,9.794e-05,2]
[422518563,1779021041000,-733.2157974,9.794e-05,2]
[422518565,1779021041000,-244.24490286,9.794e-05,2]
[422518570,1779021041000,-1335.73825948,9.794e-05,2]
[422518569,1779021041000,-1335.73825948,9.794e-05,2]
[422518568,1779021041000,-1335.73825948,9.794e-05,2]
[422518567,1779021041000,-1335.73825948,9.794e-05,2]
[422518606,1779021043000,-10860.99925889,9.895e-05,2]
[422518608,1779021043000,-2408.86898391,9.895e-05,2]
[422518605,1779021043000,-10064.35087487,9.895e-05,2]
[422518609,1779021043000,-657.5484785,9.895e-05,2]
[422518610,1779021043000,-7649.64680441,9.895e-05,2]
[422518607,1779021043000,-552.0,9.895e-05,2]
[422518617,1779021046000,-7199.29956112,9.895e-05,2]
[422518616,1779021046000,-77657.8535349,9.895e-05,2]
[422518626,1779021557000,15000.0,5e-05,2]
[422518631,1779021884000,15000.0,0.00017,120]
[422518632,1779021885000,417.21103713,0.00017005,120]
[422518676,1779022232000,-384.768375,7.699e-05,2]
[422518681,1779022232000,361.49325843,0.00017005,120]
[422518712,1779022241000,-500.0,9.406e-05,2]
[422518710,1779022241000,-500.0,9.406e-05,2]
[422518716,1779022241000,-185.58313279,9.406e-05,2]
[422518711,1779022241000,-500.0,9.406e-05,2]
[422518709,1779022241000,-10000.0,9.123e-05,2]
[422518708,1779022241000,-758.56362325,9.024e-05,2]
[422518707,1779022241000,-189.83073655,9.024e-05,2]
[422518697,1779022241000,-4615.231625,7.699e-05,2]
[422518702,1779022241000,-300.0,8.822e-05,2]
[422518701,1779022241000,-300.0,8.822e-05,2]
[422518700,1779022241000,-502.1174523,7.935e-05,2]
[422518718,1779022241000,-220.64673228,9.406e-05,2]
[422518704,1779022241000,-4020.9482378,8.823e-05,2]
[422518699,1779022241000,-220.0659271,7.914e-05,2]
[422518698,1779022241000,-473.03601601,7.896e-05,2]
[422518705,1779022241000,-160.0,9.011e-05,2]
[422518703,1779022241000,-1200.0,8.822e-05,2]
[422518706,1779022241000,-161.67668242,9.011e-05,2]
[422518713,1779022241000,-500.0,9.406e-05,2]
[422518719,1779022241000,-500.0,9.406e-05,2]
[422518720,1779022241000,-500.0,9.406e-05,2]
[422518729,1779022241000,-353.81823507,9.406e-05,2]
[422518732,1779022241000,-500.0,9.406e-05,2]
[422518733,1779022241000,-500.0,9.406e-05,2]
[422518731,1779022241000,-500.0,9.406e-05,2]
[422518727,1779022241000,-500.0,9.406e-05,2]
[422518725,1779022241000,-401.39069904,9.406e-05,2]
[422518726,1779022241000,-500.0,9.406e-05,2]
[422518730,1779022241000,-500.0,9.406e-05,2]
[422518734,1779022241000,-500.0,9.406e-05,2]
[422518723,1779022241000,-500.0,9.406e-05,2]
[422518724,1779022241000,-500.0,9.406e-05,2]
[422518722,1779022241000,-500.0,9.406e-05,2]
[422518721,1779022241000,-500.0,9.406e-05,2]
[422518717,1779022241000,-500.0,9.406e-05,2]
[422518715,1779022241000,-500.0,9.406e-05,2]
[422518728,1779022241000,-500.0,9.406e-05,2]
[422518714,1779022241000,-500.0,9.406e-05,2]
[422518777,1779022242000,-1563.8611194,9.561e-05,2]
[422518772,1779022242000,-871.69776347,9.56e-05,2]
[422518770,1779022242000,-871.69776347,9.56e-05,2]
[422518773,1779022242000,-871.69776347,9.56e-05,2]
[422518776,1779022242000,-871.69776347,9.56e-05,2]
[422518767,1779022242000,-871.69776347,9.56e-05,2]
[422518765,1779022242000,-871.69776347,9.56e-05,2]
[422518763,1779022242000,-871.69776347,9.56e-05,2]
[422518775,1779022242000,-871.69776347,9.56e-05,2]
[422518778,1779022242000,-17843.5794322,9.561e-05,2]
[422518769,1779022242000,-871.69776347,9.56e-05,2]
[422518779,1779022242000,-521.2870398,9.561e-05,2]
[422518786,1779022242000,-158.55579767,9.744e-05,7]
[422518782,1779022242000,-151.0,9.561e-05,2]
[422518781,1779022242000,-174.29498611,9.561e-05,2]
[422518780,1779022242000,-70093.1657611,9.561e-05,2]
[422518785,1779022242000,-1680.0,9.704e-05,2]
[422518784,1779022242000,-420.0,9.704e-05,2]
[422518788,1779022242000,-153.36157109,9.744e-05,7]
[422518790,1779022242000,-175.49163639,9.744e-05,7]
[422518766,1779022242000,-871.69776347,9.56e-05,2]
[422518787,1779022242000,-153.34429151,9.744e-05,7]
[422518789,1779022242000,-163.18473717,9.744e-05,7]
[422518791,1779022242000,-500.0,9.782e-05,2]
[422518792,1779022242000,-161.0,9.8e-05,2]
[422518797,1779022242000,-155.22610294,9.81e-05,7]
[422518783,1779022242000,-161.0,9.6e-05,2]
[422518774,1779022242000,-871.69776347,9.56e-05,2]
[422518750,1779022242000,-10000.0,9.5e-05,20]
[422518761,1779022242000,-871.69776347,9.56e-05,2]
[422518793,1779022242000,-161.0,9.8e-05,2]
[422518735,1779022242000,-500.0,9.406e-05,2]
[422518736,1779022242000,-500.0,9.406e-05,2]
[422518738,1779022242000,-500.0,9.406e-05,2]
[422518737,1779022242000,-500.0,9.406e-05,2]
[422518740,1779022242000,-500.0,9.406e-05,2]
[422518746,1779022242000,-1941.81975269,9.408e-05,2]
[422518742,1779022242000,-500.0,9.406e-05,2]
[422518741,1779022242000,-500.0,9.406e-05,2]
[422518744,1779022242000,-318.98476186,9.406e-05,2]
[422518745,1779022242000,-91442.51808107,9.407e-05,2]
[422518743,1779022242000,-500.0,9.406e-05,2]
[422518739,1779022242000,-500.0,9.406e-05,2]
[422518747,1779022242000,-500.0,9.456e-05,2]
[422518748,1779022242000,-500.0,9.499e-05,2]
[422518749,1779022242000,-161.37355658,9.5e-05,2]
[422518751,1779022242000,-5000.0,9.5e-05,10]
[422518754,1779022242000,-151.0,9.503e-05,2]
[422518753,1779022242000,-257.505,9.503e-05,2]
[422518752,1779022242000,-5262.60784745,9.5e-05,5]
[422518757,1779022242000,-871.69776347,9.56e-05,2]
[422518755,1779022242000,-500.0,9.508e-05,2]
[422518756,1779022242000,-160.0,9.544e-05,2]
[422518760,1779022242000,-871.69776347,9.56e-05,2]
[422518758,1779022242000,-375.25929451,9.56e-05,2]
[422518759,1779022242000,-871.69776347,9.56e-05,2]
[422518762,1779022242000,-871.69776347,9.56e-05,2]
[422518764,1779022242000,-871.69776347,9.56e-05,2]
[422518800,1779022242000,-74943.26816002,9.895e-05,2]
[422518828,1779022242000,-1099.309,0.0001,2]
[422518803,1779022242000,-558.18249889,9.896e-05,2]
[422518851,1779022242000,-500.0,0.0001,2]
[422518853,1779022242000,-256.34266689,0.0001,2]
[422518843,1779022242000,-6436.37245048,0.0001,2]
[422518845,1779022242000,-1354.79928781,0.0001,2]
[422518847,1779022242000,-1510.515,0.0001,2]
[422518849,1779022242000,-10115.45762428,0.0001,2]
[422518857,1779022242000,-151.0,0.0001,2]
[422518861,1779022242000,-151.0,0.0001,2]
[422518855,1779022242000,-180.0,0.0001,2]
[422518859,1779022242000,-151.0,0.0001,2]
[422518863,1779022242000,-151.0,0.0001,2]
[422518877,1779022242000,-151.0,0.0001,2]
[422518841,1779022242000,-145759.963189,0.0001,2]
[422518879,1779022242000,-151.0,0.0001,2]
[422518873,1779022242000,-151.0,0.0001,2]
[422518875,1779022242000,-151.0,0.0001,2]
[422518881,1779022242000,-151.0,0.0001,2]
[422518883,1779022242000,-151.0,0.0001,2]
[422518887,1779022242000,-151.0,0.0001,2]
[422518891,1779022242000,-151.0,0.0001,2]
[422518903,1779022242000,-151.0,0.0001,2]
[422518894,1779022242000,-151.0,0.0001,2]
[422518898,1779022242000,-151.0,0.0001,2]
[422518889,1779022242000,-151.0,0.0001,2]
[422518905,1779022242000,-151.0,0.0001,2]
[422518795,1779022242000,-161.38305567,9.81e-05,7]
[422518871,1779022242000,-151.0,0.0001,2]
[422518839,1779022242000,-408.49,0.0001,2]
[422518885,1779022242000,-151.0,0.0001,2]
[422518825,1779022242000,-3358.65944502,0.0001,2]
[422518837,1779022242000,-1217.19,0.0001,2]
[422518801,1779022242000,-151.217223,9.895e-05,2]
[422518794,1779022242000,-193.21536577,9.81e-05,7]
[422518796,1779022242000,-151.40182946,9.81e-05,7]
[422518798,1779022242000,-443.0,9.856e-05,2]
[422518799,1779022242000,-185.0,9.856e-05,2]
[422518805,1779022242000,-500.0,9.9e-05,2]
[422518804,1779022242000,-2346.31902019,9.9e-05,2]
[422518807,1779022242000,-1000.0,0.0001,2]
[422518806,1779022242000,-5114.37867587,0.0001,2]
[422518808,1779022242000,-5497.72452023,0.0001,2]
[422518814,1779022242000,-1343.48943956,0.0001,2]
[422518809,1779022242000,-300.43280213,0.0001,2]
[422518802,1779022242000,-151.0,9.895e-05,2]
[422518813,1779022242000,-1615.04136782,0.0001,2]
[422518835,1779022242000,-156.74999999,0.0001,2]
[422518810,1779022242000,-21817.44545512,0.0001,2]
[422518824,1779022242000,-33891.61902146,0.0001,2]
[422518901,1779022242000,-151.0,0.0001,2]
[422518826,1779022242000,-332.843151,0.0001,2]
[422518832,1779022242000,-1219.71,0.0001,2]
[422518822,1779022242000,-164.54448204,0.0001,2]
[422518819,1779022242000,-1496.78,0.0001,2]
[422518830,1779022242000,-1219.711,0.0001,2]
[422518820,1779022242000,-6148.90749194,0.0001,2]
[422518818,1779022242000,-1496.786,0.0001,2]
[422518816,1779022242000,-1156.51056044,0.0001,2]
[422518833,1779022242000,-1507.7677,0.0001,2]
[422518930,1779022243000,-1354.79928781,0.000102,2]
[422518937,1779022243000,-239.9303497,0.00010244,30]
[422518928,1779022243000,-4357.34358376,0.00010161,2]
[422518941,1779022243000,-239.9303497,0.00010289,30]
[422518940,1779022243000,-239.9303497,0.00010283,30]
[422518929,1779022243000,-6436.37245048,0.000102,2]
[422518934,1779022243000,-239.9303497,0.00010233,30]
[422518933,1779022243000,-5000.0,0.000102,2]
[422518945,1779022243000,-6436.37245048,0.000103,2]
[422518938,1779022243000,-239.9303497,0.0001025,30]
[422518939,1779022243000,-239.9303497,0.00010255,30]
[422518943,1779022243000,-239.9303497,0.00010294,30]
[422518946,1779022243000,-1354.79928781,0.000103,2]
[422518944,1779022243000,-1439.48209818,0.000103,2]
[422518942,1779022243000,-517.44772363,0.00010289,2]
[422518926,1779022243000,-10115.45762428,0.000101,2]
[422518947,1779022243000,-7543.96846564,0.000103,2]
[422518932,1779022243000,-10115.45762428,0.000102,2]
[422518927,1779022243000,-3343.25928784,0.00010137,2]
[422518913,1779022243000,-210.34,0.00010016,2]
[422518922,1779022243000,-200.81,0.00010052,2]
[422518948,1779022243000,-2571.48915864,0.000103,2]
[422518906,1779022243000,-151.0,0.0001,2]
[422518907,1779022243000,-151.0,0.0001,2]
[422518909,1779022243000,-155.36,0.00010014,2]
[422518908,1779022243000,-160.26,0.00010011,2]
[422518910,1779022243000,-187.23,0.00010014,2]
[422518912,1779022243000,-158.75,0.00010016,2]
[422518911,1779022243000,-185.96,0.00010016,2]
[422518925,1779022243000,-1354.79928781,0.000101,2]
[422518914,1779022243000,-161.51,0.00010016,2]
[422518915,1779022243000,-158.83,0.00010016,2]
[422518917,1779022243000,-162.56,0.00010019,2]
[422518918,1779022243000,-159.78,0.00010026,2]
[422518919,1779022243000,-156.69,0.00010036,2]
[422518924,1779022243000,-6436.37245048,0.000101,2]
[422518923,1779022243000,-500.0,0.00010056,2]
[422518921,1779022243000,-500.0,0.00010047,2]
[422518920,1779022243000,-191.09,0.00010046,2]
[422518916,1779022243000,-248.92,0.00010019,2]
[422518949,1779022243000,-500.0,0.0001033,2]
[422518935,1779022243000,-239.9303497,0.00010239,30]
[422518952,1779022243000,-317.11159534,0.00010397,7]
[422518963,1779022243000,-993.81914638,0.000104,2]
[422518974,1779022243000,-581.8,0.00010473,2]
[422518976,1779022243000,-308.056953,0.00010476,2]
[422518977,1779022243000,-209.769675,0.00010476,2]
[422518986,1779022243000,-160.0,0.00010476,2]
[422518978,1779022243000,-160.0,0.00010476,2]
[422518984,1779022243000,-167.162131,0.00010476,2]
[422518982,1779022243000,-282.333757,0.00010476,2]
[422518972,1779022243000,-302.80365892,0.00010465,7]
[422518981,1779022243000,-214.928112,0.00010476,2]
[422518979,1779022243000,-256.854073,0.00010476,2]
[422518980,1779022243000,-353.708146,0.00010476,2]
[422518985,1779022243000,-174.324263,0.00010476,2]
[422518988,1779022243000,-182.391353,0.00010476,2]
[422518989,1779022243000,-161.0,0.000105,2]
[422518987,1779022243000,-171.195676,0.00010476,2]
[422518991,1779022243000,-5522.07467542,0.000105,2]
[422518990,1779022243000,-1003.12,0.000105,2]
[422518975,1779022243000,-563.26,0.00010473,2]
[422518970,1779022243000,-386.43073153,0.00010465,7]
[422518983,1779022243000,-160.0,0.00010476,2]
[422518969,1779022243000,-537.18,0.00010459,2]
[422518973,1779022243000,-310.45220589,0.00010465,7]
[422518950,1779022243000,-239.70226689,0.00010394,2]
[422518954,1779022243000,-306.72314218,0.00010397,7]
[422518956,1779022243000,-350.98327279,0.00010397,7]
[422518953,1779022243000,-306.68858302,0.00010397,7]
[422518955,1779022243000,-326.36947433,0.00010397,7]
[422518957,1779022243000,-459.49,0.00010398,2]
[422518958,1779022243000,-966.37416349,0.000104,2]
[422518959,1779022243000,359.82811286,0.00017015,120]
[422518960,1779022243000,-5469.99828699,0.000104,2]
[422518951,1779022243000,-246.11134016,0.00010396,7]
[422518962,1779022243000,-924.0403803,0.000104,2]
[422518966,1779022243000,-468.1,0.00010412,2]
[422518992,1779022243000,-316.73702623,0.000105,2]
[422518964,1779022243000,-9121.6384779,0.000104,2]
[422518965,1779022243000,-459.04,0.00010403,2]
[422518968,1779022243000,-509.56,0.00010441,2]
[422518971,1779022243000,-322.76611134,0.00010465,7]
[422518967,1779022243000,-494.05,0.00010425,2]
[422518961,1779022243000,-430.75890751,0.000104,2]
[422518997,1779022246000,-2043.59063192,9.464e-05,2]
[422519008,1779022247000,-1000.0,0.000105,2]
[422519011,1779022247000,-1000.0,0.000105,2]
[422519012,1779022247000,-1000.0,0.000105,2]
[422519016,1779022247000,-1604.484031,0.00010584,2]
[422519014,1779022247000,-169.400255,0.00010584,2]
[422519013,1779022247000,-184.834173,0.00010584,2]
[422519004,1779022247000,-1000.0,0.000105,2]
[422519015,1779022247000,-160.0,0.00010584,2]
[422519009,1779022247000,-1000.0,0.000105,2]
[422519018,1779022247000,-160.0,0.00010584,2]
[422519003,1779022247000,-1000.0,0.000105,2]
[422519007,1779022247000,-1000.0,0.000105,2]
[422519006,1779022247000,-1000.0,0.000105,2]
[422519001,1779022247000,-1354.79928781,0.000105,2]
[422518999,1779022247000,-164.54448204,0.0001,2]
[422519010,1779022247000,-1000.0,0.000105,2]
[422519000,1779022247000,-597.56074883,0.000105,2]
[422518998,1779022247000,-2956.40936808,9.464e-05,2]
[422519002,1779022247000,-10115.45762428,0.000105,2]
[422519005,1779022247000,-1000.0,0.000105,2]
[422519020,1779022247000,-5005.337109,0.00010584,2]
[422519021,1779022247000,-160.0,0.00010584,2]
[422519038,1779022247000,-522.64548169,0.000107,2]
[422519039,1779022247000,-5387.26239441,0.000108,2]
[422519029,1779022247000,-429.42415924,0.00010618,2]
[422519034,1779022247000,-3466.95988149,0.00010685,2]
[422519036,1779022247000,-1354.79928781,0.000107,2]
[422519019,1779022247000,-2582.668554,0.00010584,2]
[422519032,1779022247000,-5241.42991,0.00010637,2]
[422519035,1779022247000,-6436.37245048,0.000107,2]
[422519033,1779022247000,-2351.0,0.00010674,2]
[422519037,1779022247000,-9592.81214259,0.000107,2]
[422519028,1779022247000,-500.0,0.00010604,2]
[422519031,1779022247000,-2700.714955,0.00010637,2]
[422519022,1779022247000,-1356.628603,0.00010584,2]
[422519023,1779022247000,-500.0,0.00010595,2]
[422519024,1779022247000,-162.04937236,0.000106,2]
[422519017,1779022247000,-3048.968062,0.00010584,2]
[422519026,1779022247000,-1354.79928781,0.000106,2]
[422519027,1779022247000,-10115.45762428,0.000106,2]
[422519030,1779022247000,-160.0,0.00010637,2]
[422519025,1779022247000,-6436.37245048,0.000106,2]
[422519218,1779023439000,-1680.0,7.174e-05,2]
[422519213,1779023439000,-598.00402032,6.522e-05,2]
[422519217,1779023439000,-420.0,7.174e-05,2]
[422519225,1779023439000,-924.47736575,7.8e-05,2]
[422519222,1779023439000,-924.47736575,7.8e-05,2]
[422519215,1779023439000,-2481.09826506,6.675e-05,2]
[422519226,1779023439000,-924.47736575,7.8e-05,2]
[422519228,1779023439000,-924.47736575,7.8e-05,2]
[422519234,1779023439000,-924.47736575,7.8e-05,2]
[422519231,1779023439000,-924.47736575,7.8e-05,2]
[422519229,1779023439000,-924.47736575,7.8e-05,2]
[422519230,1779023439000,-924.47736575,7.8e-05,2]
[422519233,1779023439000,-924.47736575,7.8e-05,2]
[422519238,1779023439000,-924.47736575,7.8e-05,2]
[422519232,1779023439000,-924.47736575,7.8e-05,2]
[422519237,1779023439000,-924.47736575,7.8e-05,2]
[422519236,1779023439000,-924.47736575,7.8e-05,2]
[422519223,1779023439000,-924.47736575,7.8e-05,2]
[422519227,1779023439000,-924.47736575,7.8e-05,2]
[422519220,1779023439000,-8400.328685,7.486e-05,2]
[422519210,1779023439000,-500.0,6.522e-05,2]
[422519219,1779023439000,-2481.09826505,7.458e-05,2]
[422519198,1779023439000,-323.76412996,6.391e-05,2]
[422519201,1779023439000,-300.0,6.521e-05,2]
[422519200,1779023439000,-300.0,6.521e-05,2]
[422519235,1779023439000,-924.47736575,7.8e-05,2]
[422519199,1779023439000,-3567.71318644,6.456e-05,2]
[422519197,1779023439000,-5000.0,6.327e-05,2]
[422519204,1779023439000,-500.0,6.522e-05,2]
[422519209,1779023439000,-500.0,6.522e-05,2]
[422519216,1779023439000,-465.41412871,6.709e-05,2]
[422519207,1779023439000,-500.0,6.522e-05,2]
[422519205,1779023439000,-500.0,6.522e-05,2]
[422519208,1779023439000,-496.62896114,6.522e-05,2]
[422519206,1779023439000,-500.0,6.522e-05,2]
[422519211,1779023439000,-361.78567195,6.522e-05,2]
[422519212,1779023439000,-392.02965278,6.522e-05,2]
[422519214,1779023439000,-131423.0590466,6.523e-05,2]
[422519224,1779023439000,-924.47736575,7.8e-05,2]
[422519221,1779023439000,-924.47736575,7.8e-05,2]
[422519203,1779023439000,-500.0,6.522e-05,2]
[422519240,1779023439000,-587.0,7.891e-05,2]
[422519202,1779023439000,-1200.0,6.521e-05,2]
[422519250,1779023439000,-8400.328685,8.431e-05,2]
[422519265,1779023439000,-151.5,8.458e-05,2]
[422519264,1779023439000,-151.5,8.458e-05,2]
[422519270,1779023439000,-151.5,8.458e-05,2]
[422519268,1779023439000,-164.02470756,8.458e-05,2]
[422519269,1779023439000,-151.5,8.458e-05,2]
[422519267,1779023439000,-151.5,8.458e-05,2]
[422519271,1779023439000,-189.85731787,8.458e-05,2]
[422519272,1779023439000,-175.38172066,8.458e-05,2]
[422519266,1779023439000,-236.34769206,8.458e-05,2]
[422519273,1779023439000,-500.0,8.493e-05,2]
[422519278,1779023439000,-8400.328685,8.746e-05,2]
[422519277,1779023439000,-549.18867187,8.709e-05,2]
[422519275,1779023439000,-2657.0,8.68e-05,2]
[422519280,1779023439000,-2481.09826505,9.025e-05,2]
[422519279,1779023439000,-610.02431793,8.767e-05,2]
[422519282,1779023439000,-160.0,9.293e-05,2]
[422519281,1779023439000,-8400.328685,9.061e-05,2]
[422519239,1779023439000,-8400.328685,7.801e-05,2]
[422519274,1779023439000,-823.0,8.68e-05,2]
[422519263,1779023439000,-151.5,8.458e-05,2]
[422519276,1779023439000,-300.0,8.689e-05,2]
[422519257,1779023439000,-151.5,8.458e-05,2]
[422519261,1779023439000,-292.52238375,8.458e-05,2]
[422519241,1779023439000,-2351.0,7.891e-05,2]
[422519242,1779023439000,-500.0,7.931e-05,2]
[422519244,1779023439000,-176.747651,8.16e-05,2]
[422519243,1779023439000,-8400.328685,8.116e-05,2]
[422519245,1779023439000,-345.1060594,8.219e-05,2]
[422519249,1779023439000,-609.58898731,8.327e-05,2]
[422519247,1779023439000,-500.0,8.219e-05,2]
[422519248,1779023439000,-2481.09826505,8.242e-05,2]
[422519246,1779023439000,-219.364216,8.219e-05,2]
[422519253,1779023439000,-500.0,8.458e-05,2]
[422519262,1779023439000,-163.97579235,8.458e-05,2]
[422519256,1779023439000,-151.5,8.458e-05,2]
[422519258,1779023439000,-215.04220334,8.458e-05,2]
[422519254,1779023439000,-151.5,8.458e-05,2]
[422519260,1779023439000,-151.5,8.458e-05,2]
[422519252,1779023439000,-500.0,8.458e-05,2]
[422519255,1779023439000,-393.01507182,8.458e-05,2]
[422519251,1779023439000,-151.5,8.458e-05,2]
[422519259,1779023439000,-151.5,8.458e-05,2]
[422519316,1779023440000,-181.36537127,0.0001,2]
[422519318,1779023440000,-702.91193819,0.0001,7]
[422519317,1779023440000,-5391.8084244,0.0001,2]
[422519310,1779023440000,-693.3919763,9.985e-05,2]
[422519315,1779023440000,-1434.3802703,0.0001,2]
[422519313,1779023440000,-318.38317988,0.0001,2]
[422519312,1779023440000,-478.24307914,0.0001,2]
[422519322,1779023440000,-180.0,0.0001,2]
[422519319,1779023440000,-1102.61488945,0.0001,2]
[422519321,1779023440000,-341.81328918,0.0001,2]
[422519314,1779023440000,-1830.12483622,0.0001,2]
[422519320,1779023440000,-2383.52188522,0.0001,2]
[422519330,1779023440000,-151.0,0.0001,2]
[422519334,1779023440000,-719.04747942,0.0001004,2]
[422519323,1779023440000,-151.0,0.0001,2]
[422519326,1779023440000,-151.0,0.0001,2]
[422519327,1779023440000,-151.0,0.0001,2]
[422519329,1779023440000,-151.0,0.0001,2]
[422519333,1779023440000,-177.8018764,0.0001,2]
[422519332,1779023440000,-151.0,0.0001,2]
[422519328,1779023440000,-151.0,0.0001,2]
[422519331,1779023440000,-151.0,0.0001,2]
[422519336,1779023440000,-10115.45762428,0.000101,2]
[422519311,1779023440000,-10115.45762428,0.0001,2]
[422519324,1779023440000,-151.0,0.0001,2]
[422519306,1779023440000,-644.79446246,9.875e-05,2]
[422519286,1779023440000,-162.380719,9.6e-05,2]
[422519307,1779023440000,-240.455,9.9e-05,2]
[422519284,1779023440000,-161.67668242,9.298e-05,2]
[422519283,1779023440000,-160.0,9.298e-05,2]
[422519285,1779023440000,-2142.29566482,9.39e-05,2]
[422519287,1779023440000,-537.6845,9.6e-05,2]
[422519297,1779023440000,-196.63497221,9.808e-05,7]
[422519346,1779023440000,-1434.3802703,0.000103,2]
[422519288,1779023440000,-537.6845,9.6e-05,2]
[422519289,1779023440000,-151.0,9.6e-05,2]
[422519295,1779023440000,-195.27349736,9.789e-05,7]
[422519291,1779023440000,-557.5788265,9.655e-05,2]
[422519290,1779023440000,-500.0,9.6e-05,2]
[422519308,1779023440000,-668.65185757,9.93e-05,2]
[422519294,1779023440000,-210.58996367,9.789e-05,7]
[422519296,1779023440000,-487285.95859977,9.8e-05,2]
[422519293,1779023440000,-599.60298507,9.765e-05,2]
[422519298,1779023440000,-2481.09826505,9.808e-05,2]
[422519304,1779023440000,-621.78829552,9.82e-05,2]
[422519300,1779023440000,-192.83811962,9.81e-05,7]
[422519302,1779023440000,-177.72902072,9.81e-05,7]
[422519309,1779023440000,-185.0,9.946e-05,2]
[422519299,1779023440000,-183.77661831,9.81e-05,7]
[422519301,1779023440000,-181.54868798,9.81e-05,7]
[422519303,1779023440000,-152.84970381,9.81e-05,7]
[422519305,1779023440000,-500.0,9.82e-05,2]
[422519292,1779023440000,-578.20924308,9.71e-05,2]
[422519348,1779023440000,-10115.45762428,0.000104,2]
[422519325,1779023440000,-151.0,0.0001,2]
[422519335,1779023440000,-745.65223616,0.00010095,2]
[422519388,1779023440000,-10115.45762428,0.000106,2]
[422519377,1779023440000,-1434.3802703,0.000105,2]
[422519384,1779023440000,-3825.7163439,0.00010547,2]
[422519379,1779023440000,-167.07741502,0.00010518,2]
[422519380,1779023440000,-39187.7041989,0.00010547,2]
[422519390,1779023440000,-1434.3802703,0.000106,2]
[422519401,1779023440000,-10115.45762428,0.000107,2]
[422519403,1779023440000,-1434.3802703,0.000107,2]
[422519405,1779023440000,-632.96321504,0.00010709,2]
[422519409,1779023440000,-198.854016,0.00010739,2]
[422519407,1779023440000,-160.0,0.00010739,2]
[422519394,1779023440000,-177.107707,0.00010629,2]
[422519397,1779023440000,-174.485274,0.0001063,2]
[422519392,1779023440000,-201.921638,0.00010629,2]
[422519399,1779023440000,-500.0,0.00010696,2]
[422519411,1779023440000,-237.708033,0.00010739,2]
[422519415,1779023440000,-2102.216952,0.00010739,2]
[422519417,1779023440000,-4044.433905,0.00010739,2]
[422519413,1779023440000,-160.0,0.00010739,2]
[422519419,1779023440000,-160.0,0.00010793,2]
[422519433,1779023440000,-5643.607637,0.00010793,2]
[422519437,1779023440000,-2723.443337,0.00010793,2]
[422519435,1779023440000,-160.0,0.00010793,2]
[422519430,1779023440000,-2901.803818,0.00010793,2]
[422519338,1779023440000,-1434.3802703,0.000101,2]
[422519386,1779023440000,-334.93224842,0.00010584,2]
[422519374,1779023440000,-786.24323157,0.00010486,2]
[422519396,1779023440000,-212.614787,0.00010629,2]
[422519375,1779023440000,-3141.82795337,0.00010486,2]
[422519337,1779023440000,-478.24307914,0.000101,2]
[422519376,1779023440000,-10115.45762428,0.000105,2]
[422519343,1779023440000,-1434.3802703,0.000102,2]
[422519341,1779023440000,-10115.45762428,0.000102,2]
[422519342,1779023440000,-478.24307914,0.000102,2]
[422519339,1779023440000,-500.0,0.00010148,2]
[422519345,1779023440000,-478.24307914,0.000103,2]
[422519344,1779023440000,-10115.45762428,0.000103,2]